fUSD/lending_fUSD_20240626
["ID","MTS","AMOUNT","RATE_DAILY","PERIOD"]
[330435113,1719401442572,-150.0,0.00021715,2]
[330435114,1719401442591,-150.0,0.00021716,2]
[330435115,1719401442605,-150.0,0.00021719,2]
[330435116,1719401442623,-150.0,0.00021721,2]
[330435117,1719401442643,-150.0,0.00021721,2]
[330435118,1719401442662,-150.0,0.00021721,2]
[330435119,1719401442675,-150.0,0.00021726,2]
[330435120,1719401442692,-150.0,0.00021726,2]
[330435121,1719401442708,-150.0,0.00021727,2]
[330435122,1719401442725,-150.0,0.0002173,2]
[330435123,1719401442738,-150.0,0.00021731,2]
[330435124,1719401442767,-150.0,0.00021732,2]
[330435125,1719401442784,-150.0,0.00021733,2]
[330435126,1719401442799,-150.0,0.00021737,2]
[330435127,1719401442814,-150.0,0.0002174,2]
[330435128,1719401442830,-150.0,0.00021747,2]
[330435129,1719401442845,-150.0,0.00021748,2]
[330435130,1719401442861,-150.0,0.00021755,2]
[330435131,1719401442877,-150.0,0.00021761,2]
[330435132,1719401442892,-150.0,0.00021764,2]
[330435133,1719401442908,-150.0,0.00021766,2]
[330435134,1719401442923,-150.0,0.00021768,2]
[330435135,1719401442938,-150.0,0.00021776,2]
[330435136,1719401442955,-150.0,0.00021776,2]
[330435137,1719401442970,-150.0,0.00021783,2]
[330435138,1719401442986,-150.0,0.00021785,2]
[330435139,1719401443005,-150.0,0.00021785,2]
[330435140,1719401443021,-150.0,0.00021785,2]
[330435141,1719401443037,-150.0,0.00021786,2]
[330435142,1719401443052,-150.0,0.00021786,2]
[330435143,1719401443067,-4954.37905425,0.000218,2]
[330435145,1719401443087,-781690.87152756,0.000218,2]
[330435147,1719401443107,-1988.64726437,0.000218,2]
[330435149,1719401443127,-5116.10730428,0.000218,2]
[330435150,1719401443144,-7612.00637448,0.000218,2]
[330435151,1719401443163,-450.95372915,0.000218,2]
[330435152,1719401443183,-41696.13201306,0.000218,2]
[330435153,1719401443201,-3411.68718184,0.000218,2]
[330435154,1719401443221,-615.05618883,0.000218,2]
[330435155,1719401443240,-181771.56179283,0.000218,2]
[330435156,1719401443262,-295.05823233,0.000218,2]
[330435157,1719401443486,-490.1733676,0.000218,2]
[330435161,1719401443505,-698.20099636,0.000218,2]
[330435165,1719401443524,-684.64990068,0.000218,2]
[330435170,1719401443542,-967.5007119,0.000218,2]
[330435175,1719401443562,-1698.02186945,0.000218,2]
[330435181,1719401443885,-675.87122045,0.00019839,2]
[330435182,1719401443905,-308.94361421,0.00019839,2]
[330435183,1719401443924,-212.18516534,0.00019839,2]
[330435184,1719401443940,-150.0,0.00021557,2]
[330435185,1719401443956,-150.0,0.00021613,2]
[330435186,1719401443972,-51.48845463,0.00021618,2]
[330435187,1719401443992,-98.51154537,0.00021618,2]
[330435188,1719401444009,-150.0,0.00021637,2]
[330435189,1719401444024,-150.0,0.00021641,2]
[330435190,1719401444040,-150.0,0.00021656,2]
[330435191,1719401444056,-150.0,0.0002166,2]
[330435192,1719401444071,-28.59982494,0.00021687,2]
[330435193,1719401444090,-121.40017506,0.00021687,2]
[330435194,1719401444106,-150.0,0.00021734,2]
[330435195,1719401444121,-150.0,0.0002174,2]
[330435196,1719401444138,-150.0,0.00021763,2]
[330435197,1719401444155,-150.0,0.00021773,2]
[330435198,1719401444175,-551.81582494,0.000218,2]
[330435199,1719401444555,-2887.67808576,0.000218,2]
[330435200,1719401444574,-1619.20385,0.000218,2]
[330435201,1719401444601,-461.75544879,0.000218,2]
[330435202,1719401445990,-679.02547341,0.000218,2]
[330435203,1719401446003,-1655.05436443,0.000218,2]
[330435204,1719401446015,-64296.79459416,0.000218,2]
[330435205,1719401446025,-169.61234555,0.000218,2]
[330435206,1719401446036,-1056.1108947,0.000218,2]
[330435207,1719401446046,-859.59305372,0.000218,2]
[330435208,1719401446056,-1592.91915931,0.000218,2]
[330435209,1719401446066,-151.0,0.000218,2]
[330435210,1719401446077,-151.0,0.000218,2]
[330435211,1719401446088,-151.0,0.000218,2]
[330435212,1719401446098,-151.0,0.000218,2]
[330435213,1719401446108,-151.0,0.000218,2]
[330435214,1719401446118,-151.0,0.000218,2]
[330435215,1719401446128,-151.0,0.000218,2]
[330435216,1719401446139,-151.0,0.000218,2]
[330435217,1719401446150,-151.0,0.000218,2]
[330435218,1719401446160,-151.0,0.000218,2]
[330435219,1719401446171,-151.0,0.000218,2]
[330435220,1719401446180,-151.0,0.000218,2]
[330435221,1719401446190,-151.0,0.000218,2]
[330435222,1719401446200,-151.0,0.000218,2]
[330435223,1719401446211,-151.0,0.000218,2]
[330435224,1719401446221,-151.0,0.000218,2]
[330435225,1719401446231,-151.0,0.000218,2]
[330435226,1719401446241,-151.0,0.000218,2]
[330435227,1719401446252,-151.0,0.000218,2]
[330435228,1719401446262,-255.219665,0.000218,2]
[330435229,1719401446272,-555.23490428,0.000218,2]
[330435230,1719401446282,-151.0,0.000218,2]
[330435231,1719401446293,-255.219665,0.000218,2]
[330435232,1719401446303,-274.838318,0.000218,2]
[330435233,1719401446314,-274.838318,0.000218,2]
[330435234,1719401446324,-218.418647,0.000218,2]
[330435235,1719401446334,-218.418647,0.000218,2]
[330435236,1719401446344,-151.0,0.000218,2]
[330435237,1719401446354,-151.0,0.000218,2]
[330435238,1719401446364,-151.0,0.000218,2]
[330435239,1719401446376,-151.0,0.000218,2]
[330435240,1719401446393,-151.0,0.000218,2]
[330435241,1719401446403,-151.0,0.000218,2]
[330435242,1719401446413,-240.511723,0.000218,2]
[330435243,1719401446425,-151.0,0.000218,2]
[330435244,1719401446434,-174.750804,0.000218,2]
[330435245,1719401446444,-151.0,0.000218,2]
[330435246,1719401446455,-151.0,0.000218,2]
[330435247,1719401446469,-174.750804,0.000218,2]
[330435248,1719401446479,-151.0,0.000218,2]
[330435249,1719401446490,-151.0,0.000218,2]
[330435250,1719401446499,-151.0,0.000218,2]
[330435251,1719401446509,-224.655472,0.000218,2]
[330435252,1719401446518,-224.655472,0.000218,2]
[330435253,1719401446528,-151.0,0.000218,2]
[330435254,1719401446537,-151.0,0.000218,2]
[330435255,1719401446546,-153.957275,0.000218,2]
[330435256,1719401446555,-151.0,0.000218,2]
[330435257,1719401446564,-151.0,0.000218,2]
[330435258,1719401446573,-365.229953,0.000218,2]
[330435259,1719401446583,-365.229953,0.000218,2]
[330435260,1719401446594,-151.0,0.000218,2]
[330435261,1719401446604,-151.0,0.000218,2]
[330435262,1719401446613,-200.790115,0.000218,2]
[330435263,1719401446625,-151.0,0.000218,2]
[330435264,1719401446635,-151.0,0.000218,2]
[330435265,1719401446645,-151.0,0.000218,2]
[330435266,1719401446654,-151.0,0.000218,2]
[330435267,1719401446664,-151.0,0.000218,2]
[330435268,1719401446674,-296.673708,0.000218,2]
[330435269,1719401446684,-151.0,0.000218,2]
[330435270,1719401446694,-154.322925,0.000218,2]
[330435271,1719401446704,-151.0,0.000218,2]
[330435272,1719401446713,-151.0,0.000218,2]
[330435273,1719401446723,-151.0,0.000218,2]
[330435274,1719401446733,-151.0,0.000218,2]
[330435275,1719401446742,-14274.44107504,0.000218,2]
[330435276,1719401446753,-151.0,0.000218,2]
[330435277,1719401446764,-151.0,0.000218,2]
[330435278,1719401446773,-151.0,0.000218,2]
[330435279,1719401446783,-151.0,0.000218,2]
[330435280,1719401446794,-151.0,0.000218,2]
[330435281,1719401446803,-151.0,0.000218,2]
[330435282,1719401446813,-151.0,0.000218,2]
[330435283,1719401446823,-151.0,0.000218,2]
[330435284,1719401446833,-151.0,0.000218,2]
[330435285,1719401446843,-307.42184,0.000218,2]
[330435286,1719401446852,-151.0,0.000218,2]
[330435287,1719401446862,-151.0,0.000218,2]
[330435288,1719401446871,-307.42184,0.000218,2]
[330435289,1719401446881,-151.0,0.000218,2]
[330435290,1719401446894,-151.0,0.000218,2]
[330435291,1719401446906,-151.0,0.000218,2]
[330435292,1719401446916,-151.0,0.000218,2]
[330435293,1719401446927,-1479.20611,0.000218,2]
[330435294,1719401446939,-164.29887112,0.000218,2]
[330435295,1719401446950,-557.127118,0.000218,2]
[330435296,1719401446960,-557.127118,0.000218,2]
[330435297,1719401446970,-151.0,0.000218,2]
[330435298,1719401446982,-151.0,0.000218,2]
[330435299,1719401446991,-151.0,0.000218,2]
[330435300,1719401447001,-153.920521,0.000218,2]
[330435301,1719401447012,-151.0,0.000218,2]
[330435302,1719401447022,-151.0,0.000218,2]
[330435303,1719401447031,-151.0,0.000218,2]
[330435304,1719401447041,-151.0,0.000218,2]
[330435305,1719401447051,-151.0,0.000218,2]
[330435306,1719401447060,-151.0,0.000218,2]
[330435307,1719401447070,-151.0,0.000218,2]
[330435308,1719401447080,-151.0,0.000218,2]
[330435309,1719401447090,-151.0,0.000218,2]
[330435310,1719401447100,-155.127049,0.000218,2]
[330435311,1719401447110,-151.0,0.000218,2]
[330435312,1719401447119,-151.0,0.000218,2]
[330435313,1719401447130,-151.0,0.000218,2]
[330435314,1719401447140,-224.351296,0.000218,2]
[330435315,1719401447150,-224.351296,0.000218,2]
[330435316,1719401447159,-224.351296,0.000218,2]
[330435317,1719401447169,-151.0,0.000218,2]
[330435318,1719401447179,-224.351296,0.000218,2]
[330435319,1719401447189,-151.0,0.000218,2]
[330435320,1719401447199,-151.0,0.000218,2]
[330435321,1719401447208,-151.0,0.000218,2]
[330435322,1719401447218,-151.0,0.000218,2]
[330435323,1719401447228,-151.0,0.000218,2]
[330435324,1719401447237,-151.0,0.000218,2]
[330435325,1719401447247,-151.0,0.000218,2]
[330435326,1719401447257,-151.0,0.000218,2]
[330435327,1719401447266,-157.623585,0.000218,2]
[330435328,1719401447275,-385.93153394,0.000218,2]
[330435329,1719401447286,-288.936988,0.000218,2]
[330435330,1719401447296,-288.936988,0.000218,2]
[330435331,1719401447305,-288.936988,0.000218,2]
[330435332,1719401447315,-288.936988,0.000218,2]
[330435333,1719401447325,-151.0,0.000218,2]
[330435334,1719401447335,-221.949815,0.000218,2]
[330435335,1719401447345,-169.213915,0.000218,2]
[330435336,1719401447354,-169.213915,0.000218,2]
[330435337,1719401447365,-151.0,0.000218,2]
[330435338,1719401447375,-299.271919,0.000218,2]
[330435339,1719401447389,-390.050327,0.000218,2]
[330435340,1719401447400,-390.050327,0.000218,2]
[330435341,1719401447409,-169.213915,0.000218,2]
[330435342,1719401447419,-169.213915,0.000218,2]
[330435343,1719401447429,-390.050327,0.000218,2]
[330435344,1719401447438,-390.050327,0.000218,2]
[330435345,1719401447448,-6509.026784,0.000218,2]
[330435346,1719401447459,-159.858515,0.000218,2]
[330435347,1719401447471,-6509.026784,0.000218,2]
[330435348,1719401447481,-151.0,0.000218,2]
[330435349,1719401447492,-159.858515,0.000218,2]
[330435350,1719401447503,-151.0,0.000218,2]
[330435351,1719401447513,-155.14137,0.000218,2]
[330435352,1719401447523,-151.0,0.000218,2]
[330435353,1719401447533,-6509.026784,0.000218,2]
[330435354,1719401447542,-159.858515,0.000218,2]
[330435355,1719401447552,-6509.026784,0.000218,2]
[330435356,1719401447562,-159.858515,0.000218,2]
[330435357,1719401447572,-153.280353,0.000218,2]
[330435358,1719401447583,-732.53794,0.000218,2]
[330435359,1719401447598,-732.53794,0.000218,2]
[330435360,1719401447607,-844.143106,0.000218,2]
[330435361,1719401447617,-844.143106,0.000218,2]
[330435362,1719401447633,-808.250524,0.000218,2]
[330435363,1719401447642,-808.250524,0.000218,2]
[330435364,1719401447652,-844.143106,0.000218,2]
[330435365,1719401447662,-844.143106,0.000218,2]
[330435366,1719401447676,-732.53794,0.000218,2]
[330435367,1719401447686,-732.53794,0.000218,2]
[330435368,1719401447696,-1142.553423,0.000218,2]
[330435369,1719401447706,-1142.553423,0.000218,2]
[330435370,1719401447716,-808.250524,0.000218,2]
[330435371,1719401447726,-808.250524,0.000218,2]
[330435372,1719401447736,-151.0,0.000218,2]
[330435373,1719401447747,-1142.553423,0.000218,2]
[330435374,1719401447757,-1142.553423,0.000218,2]
[330435375,1719401447767,-153.818517,0.000218,2]
[330435376,1719401447776,-153.818517,0.000218,2]
[330435377,1719401447786,-153.818517,0.000218,2]
[330435378,1719401447796,-151.0,0.000218,2]
[330435379,1719401447806,-153.818517,0.000218,2]
[330435380,1719401447815,-151.0,0.000218,2]
[330435381,1719401447825,-226.393904,0.000218,2]
[330435382,1719401447834,-226.393904,0.000218,2]
[330435383,1719401447844,-151.0,0.000218,2]
[330435384,1719401447853,-151.0,0.000218,2]
[330435385,1719401447863,-226.393904,0.000218,2]
[330435386,1719401447873,-226.393904,0.000218,2]
[330435387,1719401447883,-151.0,0.000218,2]
[330435388,1719401448260,-151.0,0.000218,2]
[330435389,1719401448270,-260.839545,0.000218,2]
[330435390,1719401448280,-260.839545,0.000218,2]
[330435391,1719401448290,-260.839545,0.000218,2]
[330435392,1719401448300,-260.839545,0.000218,2]
[330435393,1719401448310,-151.577947,0.000218,2]
[330435394,1719401448320,-151.0,0.000218,2]
[330435395,1719401448330,-290.576327,0.000218,2]
[330435396,1719401448340,-290.576327,0.000218,2]
[330435397,1719401448350,-290.576327,0.000218,2]
[330435398,1719401448360,-290.576327,0.000218,2]
[330435399,1719401448370,-151.0,0.000218,2]
[330435400,1719401448381,-151.0,0.000218,2]
[330435401,1719401448394,-151.0,0.000218,2]
[330435402,1719401448406,-151.0,0.000218,2]
[330435403,1719401448416,-238.45,0.000218,2]
[330435404,1719401448427,-151.0,0.000218,2]
[330435405,1719401448436,-151.0,0.000218,2]
[330435406,1719401448446,-151.0,0.000218,2]
[330435407,1719401448457,-151.0,0.000218,2]
[330435408,1719401448470,-151.0,0.000218,2]
[330435409,1719401448480,-151.0,0.000218,2]
[330435410,1719401448491,-349.1982625,0.00021809,2]
[330435411,1719401448500,-197.09674146,0.00021825,2]
[330435412,1719401448510,-349.1982625,0.00021827,2]
[330435413,1719401448520,-922.9191177,0.00021843,2]
[330435414,1719401448529,-349.1982625,0.00021845,2]
[330435415,1719401448539,-164.29887112,0.0002185,2]
[330435416,1719401448548,-243.051444,0.00021854,2]
[330435417,1719401448559,-156.200212,0.00021854,2]
[330435418,1719401448568,-1085.993758,0.00021854,2]
[330435419,1719401448578,-14355.280934,0.00021854,2]
[330435420,1719401448587,-880.196051,0.00021854,2]
[330435421,1719401448597,-581.822684,0.00021854,2]
[330435422,1719401448607,-172.034542,0.00021854,2]
[330435423,1719401448617,-2628.83938,0.00021854,2]
[330435424,1719401448627,-174.0,0.0002186,3]
[330435425,1719401448636,-349.1982625,0.00021864,2]
[330435426,1719401448646,-151.0,0.00021872,2]
[330435427,1719401448655,-349.1982625,0.00021882,2]
[330435428,1719401448665,-218.0,0.0002189,2]
[330435429,1719401448674,-305.22875309,0.00021899,2]
[330435430,1719401448684,-2249.33860156,0.000219,2]
[330435431,1719401448694,-38561.0,0.000219,2]
[330435432,1719401448703,-1000.0,0.000219,2]
[330435433,1719401448712,-349.1982625,0.000219,2]
[330435434,1719401448722,-358.27237473,0.000219,2]
[330435435,1719401448732,-164.29887112,0.000219,2]
[330435436,1719401448742,-197.09674146,0.000219,2]
[330435437,1719401448753,-922.9191177,0.000219,2]
[330435438,1719401448765,-13055.07387661,0.000219,2]
[330435439,1719401448776,-808.4756487,0.000219,2]
[330435440,1719401448788,-209.98252522,0.000219,2]
[330435441,1719401448798,-213.53996299,0.000219,4]
[330435442,1719401448808,-151.0,0.000219,2]
[330435443,1719401448818,-151.0,0.00021918,2]
[330435444,1719401448827,-151.0,0.00021918,2]
[330435445,1719401448837,-151.0,0.00021918,2]
[330435446,1719401448846,-151.0,0.00021918,2]
[330435447,1719401448856,-1608.381821,0.00021918,2]
[330435448,1719401448865,-1608.381821,0.00021918,2]
[330435449,1719401448876,-1608.381821,0.00021918,2]
[330435450,1719401448886,-1608.381821,0.00021918,2]
[330435451,1719401448895,-151.0,0.00021918,7]
[330435452,1719401448905,-151.0,0.00021918,7]
[330435453,1719401448914,-151.0,0.00021918,7]
[330435454,1719401448924,-151.0,0.00021918,7]
[330435455,1719401448933,-151.0,0.00021918,7]
[330435456,1719401448943,-151.0,0.00021918,7]
[330435457,1719401448953,-224.351296,0.00021918,7]
[330435458,1719401448963,-224.351296,0.00021918,7]
[330435459,1719401448973,-151.0,0.00021918,7]
[330435460,1719401448984,-151.0,0.00021918,7]
[330435461,1719401448994,-151.0,0.00021918,7]
[330435462,1719401449007,-290.576327,0.00021918,7]
[330435463,1719401449017,-290.576327,0.00021918,7]
[330435464,1719401449027,-151.0,0.00021918,7]
[330435465,1719401449037,-151.0,0.00021918,7]
[330435466,1719401449047,-151.0,0.00021918,7]
[330435467,1719401449057,-679.51080133,0.0002197,2]
[330435468,1719401449067,-500.0,0.0002197,2]
[330435469,1719401449077,-1302.2201886,0.0002197,2]
[330435470,1719401449087,-1000.0,0.0002197,2]
[330435471,1719401449096,-500.0,0.0002197,2]
[330435472,1719401449105,-150.5,0.0002197,30]
[330435473,1719401449114,-228.0,0.0002197,30]
[330435474,1719401449124,-216.5,0.0002197,30]
[330435475,1719401449134,-1000.0,0.0002197,2]
[330435476,1719401449144,-500.0,0.0002197,2]
[330435477,1719401449154,-523.44090366,0.00021977,2]
[330435478,1719401449163,-150.5,0.0002198,30]
[330435479,1719401449172,-150.5,0.0002198,30]
[330435480,1719401449182,-150.5,0.0002198,30]
[330435481,1719401449191,-150.5,0.0002199,30]
[330435482,1719401449200,-150.5,0.0002199,30]
[330435483,1719401449215,-150.5,0.0002199,30]
[330435484,1719401449224,-151.0,0.0002199,7]
[330435485,1719401449234,-288.936988,0.0002199,7]
[330435486,1719401449243,-288.936988,0.0002199,7]
[330435487,1719401449254,-1608.381821,0.0002199,7]
[330435488,1719401449263,-169.213915,0.0002199,7]
[330435489,1719401449273,-390.050327,0.0002199,7]
[330435490,1719401449282,-169.213915,0.0002199,7]
[330435491,1719401449292,-1608.381821,0.0002199,7]
[330435492,1719401449302,-390.050327,0.0002199,7]
[330435493,1719401449313,-6509.026784,0.0002199,7]
[330435494,1719401449323,-151.0,0.0002199,7]
[330435495,1719401449333,-159.858515,0.0002199,7]
[330435496,1719401449343,-159.858515,0.0002199,7]
[330435497,1719401449352,-6509.026784,0.0002199,7]
[330435498,1719401449362,-732.53794,0.0002199,7]
[330435499,1719401449378,-844.143106,0.0002199,7]
[330435500,1719401449391,-808.250524,0.0002199,7]
[330435501,1719401449401,-844.143106,0.0002199,7]
[330435502,1719401449411,-732.53794,0.0002199,7]
[330435503,1719401449422,-1142.553423,0.0002199,7]
[330435504,1719401449432,-808.250524,0.0002199,7]
[330435505,1719401449442,-1142.553423,0.0002199,7]
[330435506,1719401449452,-226.393904,0.0002199,7]
[330435507,1719401449466,-226.393904,0.0002199,7]
[330435508,1719401449477,-1182.14697331,0.00021999,10]
[330435509,1719401449487,-150.0,0.00021999,2]
[330435510,1719401449497,-150.0,0.00021999,7]
[330435511,1719401449509,-150.0,0.00021999,7]
[330435512,1719401449519,-150.0,0.00021999,7]
[330435513,1719401449528,-150.0,0.00021999,7]
[330435514,1719401449538,-150.0,0.00021999,7]
[330435515,1719401449547,-150.0,0.00021999,7]
[330435516,1719401449557,-150.0,0.00021999,7]
[330435517,1719401449566,-150.0,0.00021999,7]
[330435518,1719401449576,-150.0,0.00021999,7]
[330435519,1719401449585,-188384.0183935,0.00022,7]
[330435520,1719401449595,-56185.64279947,0.00022,4]
[330435521,1719401449612,-346.73481017,0.00022,4]
[330435522,1719401449623,-7015.06302904,0.00022,4]
[330435523,1719401449636,-621.37151992,0.00022,4]
[330435524,1719401449647,-3377.68586456,0.00022,4]
[330435525,1719401449658,-820.91782121,0.00022,4]
[330435526,1719401449670,-6418.9654572,0.00022,4]
[330435527,1719401449681,-29382.85196243,0.00022,4]
[330435528,1719401449692,-2437.28945687,0.00022,4]
[330435529,1719401449704,-1625.96453914,0.00022,4]
[330435530,1719401449715,-300.0,0.00022,4]
[330435531,1719401449727,-1538.947,0.00022,4]
[330435532,1719401450495,-712.73989841,0.00012345,2]
[330435533,1719401450508,-246.45266511,0.00012345,2]
[330435534,1719401450519,-496.304,0.00019839,2]
[330435535,1719401450528,-150.0,0.00021511,2]
[330435536,1719401450539,-150.0,0.00021529,2]
[330435537,1719401450548,-9999.99,0.00021533,2]
[330435538,1719401450558,-150.0,0.00021538,2]
[330435539,1719401450568,-150.0,0.00021543,2]
[330435540,1719401450578,-150.0,0.00021545,2]
[330435541,1719401450588,-150.0,0.00021552,2]
[330435542,1719401450598,-150.0,0.00021554,2]
[330435543,1719401450608,-150.0,0.00021555,2]
[330435544,1719401450618,-150.0,0.00021566,2]
[330435545,1719401450627,-150.0,0.00021567,2]
[330435546,1719401450637,-150.0,0.00021568,2]
[330435547,1719401450647,-150.0,0.00021571,2]
[330435548,1719401450656,-150.0,0.00021587,2]
[330435549,1719401450666,-150.0,0.00021588,2]
[330435550,1719401450676,-150.0,0.0002161,2]
[330435551,1719401450686,-150.0,0.00021612,2]
[330435552,1719401450696,-150.0,0.00021615,2]
[330435553,1719401450705,-150.0,0.00021617,2]
[330435554,1719401450715,-150.0,0.0002164,2]
[330435555,1719401450725,-150.0,0.00021663,2]
[330435556,1719401450738,-194.88277919,0.00021664,2]
[330435557,1719401450747,-150.0,0.00021667,2]
[330435558,1719401450758,-150.0,0.00021667,2]
[330435559,1719401450768,-150.0,0.0002167,2]
[330435560,1719401450778,-150.0,0.00021673,2]
[330435561,1719401450789,-150.0,0.00021675,2]
[330435562,1719401450800,-150.0,0.0002169,2]
[330435563,1719401450810,-150.0,0.00021694,2]
[330435564,1719401450820,-331.80047756,0.00021696,4]
[330435565,1719401450831,-150.0,0.00021698,2]
[330435566,1719401450841,-150.0,0.000217,2]
[330435567,1719401450851,-150.0,0.00021705,2]
[330435568,1719401450862,-150.0,0.00021714,2]
[330435569,1719401450872,-150.0,0.00021716,2]
[330435570,1719401450882,-150.0,0.00021722,2]
[330435571,1719401450892,-150.0,0.00021725,2]
[330435572,1719401450903,-150.0,0.00021732,2]
[330435573,1719401450913,-150.0,0.00021735,2]
[330435574,1719401450923,-150.0,0.00021746,2]
[330435575,1719401450934,-150.0,0.0002176,2]
[330435576,1719401450943,-150.0,0.00021774,2]
[330435577,1719401450952,-150.0,0.00021777,2]
[330435578,1719401450962,-150.0,0.00021777,2]
[330435579,1719401450971,-27411.89914581,0.00022,4]
[330435580,1719401450984,-692.56536752,0.00022,4]
[330435581,1719401450996,-1750.0,0.00022,4]
[330435582,1719401451010,-530404.56349643,0.00022,4]
[330435583,1719401451022,-699.55983868,0.00022,4]
[330435584,1719401451034,-1062810.84982936,0.00022,4]
[330435585,1719401451046,-579.35,0.00022,4]
[330435586,1719401451059,-27960.98745633,0.00022,4]
[330435587,1719401451071,-701.2674282,0.00022,4]
[330435588,1719401451305,-150.0,0.0002152,2]
[330435589,1719401451315,-150.0,0.00021521,2]
[330435590,1719401451326,-150.0,0.00021543,2]
[330435591,1719401451336,-150.0,0.00021554,2]
[330435592,1719401451346,-150.0,0.00021557,2]
[330435593,1719401451356,-150.0,0.00021584,2]
[330435594,1719401451366,-150.0,0.00021628,2]
[330435595,1719401451376,-143.01784987,0.00021634,2]
[330435596,1719401451391,-6.98215013,0.00021634,2]
[330435597,1719401451401,-150.0,0.00021645,2]
[330435598,1719401451411,-150.0,0.00021661,2]
[330435599,1719401451421,-150.0,0.00021674,2]
[330435600,1719401451432,-150.0,0.00021725,2]
[330435601,1719401451442,-107.45392261,0.00021735,2]
[330435602,1719401451454,-42.54607739,0.00021735,2]
[330435603,1719401451470,-150.0,0.00021741,2]
[330435604,1719401451480,-150.0,0.00021769,2]
[330435605,1719401451490,-333.40448713,0.00022,4]
[330435606,1719401451502,-292.5,0.00022,4]
[330435607,1719401451673,-150.0,0.00021519,2]
[330435608,1719401451683,-150.0,0.00021525,2]
[330435609,1719401451693,-150.0,0.00021527,2]
[330435610,1719401451703,-50.0,0.00021593,2]
[330435611,1719401451715,-100.0,0.00021593,2]
[330435612,1719401451724,-150.0,0.0002165,2]
[330435613,1719401451734,-150.0,0.00021669,2]
[330435614,1719401451744,-150.0,0.00021687,2]
[330435615,1719401451756,-150.0,0.0002169,2]
[330435616,1719401451766,-150.0,0.00021692,2]
[330435617,1719401451777,-150.0,0.00021703,2]
[330435618,1719401451787,-150.0,0.00021708,2]
[330435619,1719401451797,-150.0,0.0002172,2]
[330435620,1719401451807,-150.0,0.00021725,2]
[330435621,1719401451816,-150.0,0.00021735,2]
[330435622,1719401451826,-150.0,0.00021738,2]
[330435623,1719401451836,-150.0,0.00021786,2]
[330435624,1719401451846,-1013.69019334,0.00021799,2]
[330435625,1719401451856,-1343.967292,0.000218,2]
[330435626,1719401451866,-339.45186376,0.00021899,2]
[330435627,1719401451876,-1343.967292,0.000219,2]
[330435628,1719401451886,-30398.68702834,0.00022,4]
[330435629,1719401453115,-150.0,0.00021512,2]
[330435630,1719401453125,-150.0,0.0002152,2]
[330435631,1719401453135,-150.0,0.00021536,2]
[330435632,1719401453145,-150.0,0.00021537,2]
[330435633,1719401453155,-150.0,0.00021537,2]
[330435634,1719401453165,-150.0,0.00021548,2]